bitfinex-derivatives/quotes_ETHF0:USTF0_20260201
["timestamp","ask_amount","ask_price","bid_price","bid_amount"]
[1769958785481,0.2136,2343.0,2342.0,20.93846036]
[1769958785688,0.2136,2343.0,2342.0,7.21791516]
[1769958785888,0.2136,2343.0,2342.1,13.7205452]
[1769958786083,6.86902724,2343.1,2342.1,13.7205452]
[1769958786287,0.21372,2341.7,2340.8,2.50669829]
[1769958786485,3.35582788,2342.2,2340.9,12.99366036]
[1769958786783,7.48686643,2342.9,2340.6,2.562]
[1769958786784,6.86902724,2342.5,2340.6,2.562]
[1769958786984,6.86902724,2342.5,2340.9,7.21791516]
[1769958787180,7.08265724,2342.7,2340.7,12.99366036]
[1769958787383,7.23818947,2342.0,2340.7,12.99366036]
[1769958787588,7.23818947,2342.0,2340.7,12.99674506]
[1769958787980,7.23818947,2341.5,2340.7,12.99674506]
[1769958788185,7.23818947,2341.5,2340.8,12.99366036]
[1769958788386,7.24250308,2341.5,2340.7,0.0030847]
[1769958788986,10.59401735,2341.3,2340.7,0.0030847]
[1769958789182,7.23818947,2341.2,2340.0,7.33213392]
[1769958789386,7.23818947,2340.7,2340.0,12.99366036]
[1769958789785,7.23818947,2340.5,2339.2,7.33213392]
[1769958789989,4.082,2341.0,2338.6,7.33213392]
[1769958789990,10.59401735,2339.8,2338.6,7.33213392]
[1769958790187,0.21391,2339.6,2338.6,7.33611145]
[1769958790389,0.00536617,2339.8,2338.8,7.33213392]
[1769958790689,0.00536617,2339.8,2338.8,14.55004908]
[1769958790893,7.24355564,2339.8,2338.6,0.00397753]
[1769958791094,7.24355564,2339.8,2338.6,12.54428789]
[1769958791095,7.23818947,2339.3,2338.6,12.54428789]
[1769958791292,7.23818947,2339.3,2338.6,0.00397753]
[1769958791595,7.23818947,2339.7,2338.9,7.21791516]
[1769958791793,0.00536617,2339.8,2339.0,12.54031036]
[1769958792093,7.24355564,2339.8,2339.0,12.54031036]
[1769958792292,7.23818947,2339.3,2338.6,0.00397753]
[1769958792787,7.45212947,2339.3,2338.6,0.00397753]
[1769958792994,3.35582788,2339.4,2338.0,57.33213392]
[1769958792995,7.23818947,2338.8,2338.0,50.0]
[1769958793291,3.35582788,2338.1,2338.0,18.52016538]
[1769958793487,3.56987788,2338.1,2338.0,16.3527598]
[1769958793683,2.564,2338.4,2338.0,15.8588498]
[1769958793889,0.21398,2338.9,2338.0,40.40386739]
[1769958794084,3.35582788,2338.9,2338.1,7.46091731]
[1769958794284,3.35582788,2340.1,2338.8,7.46091731]
[1769958794486,0.21388,2340.0,2338.8,7.46091731]
[1769958794690,0.21388,2340.0,2339.0,7.46091731]
[1769958794887,0.00501379,2340.0,2339.0,7.46091731]
[1769958795088,0.00501379,2340.0,2339.5,7.46091731]
[1769958795287,0.00501379,2340.0,2338.4,24.54031036]
[1769958795488,3.6461527,2339.6,2338.1,24.54031036]
[1769958795690,3.35582788,2339.6,2338.1,24.54031036]
[1769958796091,3.35582788,2339.6,2338.7,7.21791516]
[1769958796496,3.35582788,2339.6,2338.8,24.54031036]
[1769958796694,0.00501379,2340.0,2338.7,7.21791516]
[1769958796891,0.21391,2339.6,2339.3,7.21791516]
[1769958797090,3.35582788,2339.0,2338.2,24.54031036]
[1769958797889,3.56979788,2339.0,2338.2,24.54031036]
[1769958798097,0.21399,2338.8,2338.0,15.86355703]
[1769958798298,0.21399,2338.8,2338.1,22.64179993]
[1769958798493,3.35582788,2338.5,2338.0,15.86355703]
[1769958798799,3.35582788,2338.5,2338.0,11.94739117]
[1769958798800,0.53902218,2338.4,2338.0,11.94739117]
[1769958799000,0.53902218,2338.4,2338.0,11.51501117]
[1769958799195,0.53902218,2338.4,2338.0,10.58607209]
[1769958799395,0.27659635,2338.3,2338.0,9.51341574]
[1769958799596,0.21404,2338.2,2338.0,8.86019574]
[1769958799802,0.214,2338.7,2338.0,31.50199567]
[1769958800002,3.35582788,2339.0,2338.0,31.06512567]
[1769958800198,3.35582788,2338.4,2338.0,7.96586574]
[1769958800398,3.35582788,2338.4,2338.0,6.91477574]
[1769958800399,0.21404,2338.2,2338.0,6.91477574]
[1769958800598,0.21404,2338.2,2338.0,5.63897576]
[1769958800808,3.35582788,2339.0,2338.1,6.08531516]
[1769958801003,0.21401,2338.5,2338.0,27.73926569]
[1769958801203,7.23818947,2339.0,2336.6,2.565]
[1769958801404,3.35582788,2337.1,2333.9,2.508]
[1769958801603,3.35582788,2337.5,2333.9,2.508]
[1769958801808,3.35582788,2337.5,2334.9,0.21434]
[1769958802006,3.35582788,2337.5,2335.7,6.08531516]
[1769958802206,3.35582788,2338.0,2336.1,6.08531516]
[1769958802410,0.00437848,2338.0,2336.8,6.08531516]
[1769958802604,0.00437848,2338.0,2336.7,6.08531516]
[1769958802799,0.00437848,2338.0,2337.0,6.08531516]
[1769958803004,0.00437848,2338.0,2336.8,6.08531516]
[1769958803204,0.00437848,2338.0,2336.9,7.33213392]
[1769958803411,0.00437848,2338.0,2337.5,6.08531516]
[1769958803708,5.59442978,2337.5,2337.2,5.04584392]
[1769958803905,0.21412,2337.3,2337.2,0.10092391]
[1769958804109,5.59442978,2337.5,2337.2,0.10092391]
[1769958804404,3.35582788,2337.6,2337.2,0.10092391]
[1769958804705,2.567,2338.0,2337.2,0.10092391]
[1769958805009,3.35582788,2338.1,2337.3,4.27760001]
[1769958805306,0.21409,2337.7,2336.1,0.00543531]
[1769958805505,7.23818947,2338.0,2336.4,4.27760001]
[1769958805707,0.00383772,2338.0,2336.1,0.00543531]
[1769958806011,0.00383772,2338.0,2337.1,7.33213392]
[1769958806209,0.00383772,2338.0,2337.1,11.60973393]
[1769958806404,0.00383772,2338.0,2337.3,4.27760001]
[1769958806611,0.00383772,2338.0,2337.4,11.60973393]
[1769958806811,0.00383772,2338.0,2337.7,4.27760001]
[1769958807303,0.21403,2338.3,2336.9,5.077]
[1769958807304,7.45215947,2339.0,2337.8,11.60973393]
[1769958807509,3.35582788,2339.6,2338.0,7.33213392]
[1769958807708,3.35582788,2339.6,2338.5,7.33213392]
[1769958808106,3.35582788,2340.1,2339.3,7.33213392]
[1769958808301,0.21385,2340.3,2339.3,7.3375993]
[1769958808502,3.35582788,2341.2,2339.8,7.33213392]
[1769958808707,0.21379,2341.0,2339.8,7.33213392]
[1769958809006,3.35582788,2341.1,2340.4,7.33213392]
[1769958809207,10.59401735,2341.6,2340.5,7.33213392]
[1769958809208,3.35582788,2341.6,2340.5,7.33213392]
[1769958809406,3.35582788,2342.1,2340.7,7.33213392]
[1769958809711,3.35582788,2342.1,2340.5,2.863]
[1769958809712,3.35582788,2343.1,2341.6,7.33213392]
[1769958809905,3.35582788,2342.6,2341.6,7.33213392]
[1769958810111,0.21366,2342.4,2341.2,7.33213392]
[1769958810409,3.35582788,2342.1,2341.2,7.33521484]
[1769958810603,0.00398998,2342.4,2341.7,7.33213392]
[1769958810807,7.45180947,2342.8,2341.7,7.33213392]
[1769958811008,3.35582788,2342.6,2341.7,7.33213392]
[1769958811312,0.21363,2342.7,2341.8,11.39607393]
[1769958811508,5.92282788,2343.1,2341.9,7.33213392]
[1769958811809,0.00502923,2343.1,2341.9,7.33213392]
[1769958812013,3.35582788,2342.6,2341.6,7.33213392]
[1769958812211,3.35582788,2342.6,2341.7,11.39607393]
[1769958812512,3.35582788,2342.6,2341.7,7.33213392]
[1769958812812,3.35582788,2342.6,2341.8,4.06394001]
[1769958813213,3.35582788,2342.1,2341.2,0.00308092]
[1769958813420,0.00502923,2343.1,2341.2,7.33521484]
[1769958813712,0.00502923,2343.1,2342.1,7.33213392]
[1769958813916,3.35582788,2343.6,2342.3,7.33213392]
[1769958814208,0.21353,2343.8,2342.3,7.33213392]
[1769958814414,0.21353,2343.8,2342.9,7.33213392]
[1769958814810,0.21760406,2343.8,2342.9,10.74697168]
[1769958815005,0.21760406,2343.8,2343.1,3.41040001]
[1769958815207,0.21760406,2343.8,2343.0,7.33213392]
[1769958815411,0.21760406,2343.8,2343.0,10.74253393]
[1769958815611,3.35582788,2344.5,2343.2,10.74253393]
[1769958815913,0.21353,2343.8,2343.2,7.33213392]
[1769958816108,0.21353,2343.8,2342.9,7.33657167]
[1769958816419,0.21353,2343.8,2343.0,3.41040001]
[1769958816605,0.21353,2343.8,2343.1,7.33213392]
[1769958816811,0.00429706,2343.8,2342.9,0.00443775]
[1769958817214,0.00429706,2343.8,2342.9,7.33657167]
[1769958817516,0.00429706,2343.8,2342.9,10.09560168]
[1769958817718,0.21343,2344.9,2343.0,7.20942776]
[1769958817909,7.17453829,2344.8,2343.5,7.20942776]
[1769958818116,0.21355,2343.6,2342.9,0.00443775]
[1769958818619,0.00399016,2343.6,2342.9,0.00443775]
[1769958818816,10.53036617,2344.4,2343.3,2.75903001]
[1769958819012,10.53036617,2344.4,2341.7,17.959]
[1769958819013,0.21357,2343.4,2341.9,2.565]
[1769958819211,0.21357,2343.4,2342.2,2.75903001]
[1769958819612,0.21357,2343.4,2342.9,2.75903001]
[1769958819916,2.565,2344.5,2341.9,0.2137]
[1769958820215,2.56866587,2344.5,2342.9,7.20942776]
[1769958820408,3.35582788,2344.2,2342.9,7.20942776]
[1769958820609,7.17453829,2344.4,2342.9,7.20942776]
[1769958820809,7.17453829,2344.4,2343.1,7.20942776]
[1769958821320,0.21352,2343.9,2343.1,7.20942776]
[1769958821819,0.21352,2343.9,2343.3,2.75903001]
[1769958822021,0.21352,2343.9,2343.4,7.20942776]
[1769958822219,0.21352,2343.9,2343.3,2.75903001]
[1769958822719,0.21352,2343.9,2343.0,7.20942776]
[1769958822919,0.21353,2343.8,2343.0,7.20942776]
[1769958823220,0.21353,2343.8,2343.0,6.11606757]
[1769958823415,0.21354,2343.7,2343.0,6.11606757]
[1769958824120,0.21354,2343.6,2342.3,2.564]
[1769958824317,0.21358,2343.3,2341.9,0.00304805]
[1769958824512,0.21358,2343.3,2341.9,2.76207806]
[1769958824709,0.21358,2343.3,2342.2,2.75903001]
[1769958825021,0.21358,2343.3,2342.3,7.10106864]
[1769958825221,0.21358,2343.3,2342.4,9.86009865]
[1769958825421,3.35582788,2342.5,2341.9,9.1951667]
[1769958825719,3.35897679,2342.5,2341.9,0.00304805]
[1769958825921,3.35897679,2342.5,2342.0,1.64838001]
[1769958826119,3.35897679,2342.5,2341.9,0.00304805]
[1769958826724,0.21369,2342.1,2341.9,0.00304805]
[1769958826914,0.00314891,2342.5,2342.0,1.64838001]
[1769958827114,3.35897679,2342.5,2341.9,0.00304805]
[1769958827320,0.00314891,2342.5,2341.9,0.00304805]
[1769958827921,7.17622821,2342.5,2341.9,0.00304805]
[1769958828123,0.21369,2342.0,2341.9,0.00304805]
[1769958828321,0.21371,2341.8,2341.1,7.10106864]
[1769958828516,0.21368,2342.1,2341.5,1.64838001]
[1769958828720,0.21368,2342.1,2341.2,7.10106864]
[1769958828918,0.21368,2342.1,2341.4,8.74944865]
[1769958829226,0.21368,2342.1,2341.4,8.75303893]
[1769958829521,0.21368,2342.1,2341.5,1.64838001]
[1769958829723,0.00314891,2342.5,2341.6,7.10106864]
[1769958829924,0.00314891,2342.5,2342.0,1.64838001]
[1769958830126,0.00314891,2342.5,2341.7,1.64838001]
[1769958830427,0.00314891,2342.5,2341.7,8.74944865]
[1769958830723,7.1730793,2344.1,2342.1,7.10106864]
[1769958830920,0.21362,2342.8,2341.5,9.66506864]
[1769958831227,0.21362,2342.8,2341.6,7.10106864]
[1769958831421,0.21362,2342.8,2342.0,8.74944865]
[1769958831820,0.21718613,2342.8,2342.3,8.74944865]
[1769958832014,0.21718613,2342.8,2342.3,7.10106864]
[1769958832219,7.1730793,2343.1,2342.4,0.99573388]
[1769958832419,7.1730793,2343.1,2341.9,7.10106864]
[1769958832720,9.7370793,2343.5,2341.9,7.10106864]
[1769958832918,0.21361,2342.9,2341.9,7.10106864]
[1769958833121,0.2137,2341.9,2341.4,7.10465892]
[1769958833323,0.21365,2342.5,2341.4,7.10465892]
[1769958833624,0.21366,2342.3,2341.7,0.36709388]
[1769958833825,0.21373,2341.6,2341.0,7.10106864]
[1769958834125,0.21374,2341.5,2340.1,2.564]
[1769958834618,7.1730793,2341.8,2340.1,2.564]
[1769958834818,0.21377,2341.2,2340.1,2.564]
[1769958835022,0.21925305,2341.2,2340.1,0.00317741]
[1769958835525,0.21378,2341.0,2340.1,0.00317741]
[1769958835926,0.21378,2341.0,2340.2,7.10106864]
[1769958836323,0.00548305,2341.2,2340.2,7.10106864]
[1769958837230,0.21379,2341.0,2340.2,7.10106864]
[1769958837426,0.00548305,2341.2,2340.2,7.10106864]
[1769958837427,0.21379,2340.9,2340.2,7.10106864]
[1769958837725,0.2138,2340.8,2340.1,0.00317741]
[1769958838122,0.00548305,2341.2,2340.1,7.10424605]
[1769958839528,0.21378,2341.0,2340.1,7.10424605]
[1769958840031,0.00548305,2341.2,2340.1,7.10424605]
[1769958840233,0.2138,2340.9,2340.1,0.00317741]
[1769958840434,0.2138,2340.9,2340.1,7.10424605]
[1769958840728,0.21374,2341.5,2340.1,7.10424605]
[1769958840929,0.21377,2341.2,2340.1,7.10424605]
[1769958841727,0.21813655,2341.2,2340.1,7.10424605]
[1769958842127,0.2138,2340.9,2340.1,7.10424605]
[1769958843334,0.00436655,2341.2,2340.1,7.10424605]
[1769958843642,0.00436655,2341.2,2340.1,0.00317741]
[1769958843643,7.17744585,2341.2,2340.1,0.00317741]
[1769958843934,0.21388,2340.0,2339.0,9.66606864]
[1769958844123,7.1730793,2340.0,2338.7,7.10106864]
[1769958844330,0.21384,2340.4,2338.7,7.10106864]
[1769958844526,0.21378,2341.0,2339.1,7.31501864]
[1769958844731,9.944477,2342.0,2339.6,7.10106864]
[1769958844732,0.21373,2341.6,2339.6,7.10106864]
[1769958844927,0.21373,2341.6,2339.8,7.10106864]
[1769958845128,0.21374,2341.5,2339.8,7.10106864]
[1769958845832,0.21817667,2341.5,2340.0,7.10106864]
[1769958846432,0.21377,2341.2,2340.0,7.10106864]
[1769958846635,0.21383,2340.5,2339.5,2.565]
[1769958846839,7.1730793,2340.9,2339.5,2.565]
[1769958847433,0.21388,2340.0,2339.1,0.00526214]
[1769958847640,0.21382,2340.6,2339.1,0.00526214]
[1769958847839,0.21379,2341.0,2339.1,0.00526214]
[1769958848036,6.79654536,2341.5,2339.1,0.00526214]
[1769958848037,0.00443667,2341.5,2339.1,0.00526214]
[1769958848338,0.21369,2342.0,2339.9,2.5305089]
[1769958848531,0.21369,2342.0,2340.1,0.21386]
[1769958848736,0.2137,2341.9,2340.2,6.82048826]
[1769958848937,6.79210869,2342.3,2340.2,6.82048826]
[1769958849138,6.79210869,2341.5,2339.7,6.82048826]
[1769958849740,6.79210869,2341.9,2339.7,6.82048826]
[1769958849935,0.21373,2341.6,2339.7,7.03438826]
[1769958850134,0.21376,2341.3,2339.7,6.82048826]
[1769958850335,0.21377,2341.2,2339.7,6.82048826]
[1769958850541,6.79210869,2341.7,2339.8,6.82048826]
[1769958850740,0.21379,2341.0,2339.9,6.82048826]
[1769958850936,0.21382,2340.6,2339.9,6.82048826]
[1769958851136,0.21738504,2340.6,2339.9,6.82048826]
[1769958851939,6.79210869,2341.1,2339.9,6.82048826]
[1769958852236,0.21377,2341.1,2339.9,6.82048826]
[1769958852634,0.21379,2341.0,2339.9,6.82048826]
[1769958852835,0.00321104,2341.0,2339.9,6.82048826]
[1769958853442,6.79531973,2341.0,2339.9,6.82048826]
[1769958853739,0.00321104,2341.0,2339.9,6.82048826]
[1769958854343,6.79531973,2341.0,2339.9,6.82048826]
[1769958855241,0.00321104,2341.0,2339.9,6.82048826]
[1769958856138,7.00582869,2341.7,2339.9,6.82048826]
[1769958856334,6.79210869,2341.5,2339.9,6.82048826]
[1769958856534,6.79210869,2341.5,2340.0,6.82048826]
[1769958856939,6.79210869,2341.1,2340.0,6.82048826]
[1769958857138,6.79613417,2341.1,2340.0,6.82048826]
[1769958857642,0.00402548,2341.1,2340.0,6.82048826]
[1769958857841,0.21780548,2341.1,2340.0,6.82048826]
[1769958859543,0.21378,2341.0,2340.0,6.82048826]
[1769958860342,0.00402548,2341.1,2340.0,6.82048826]
[1769958860543,6.79210869,2341.6,2340.0,6.82048826]
[1769958860738,0.21374,2341.5,2340.0,6.82048826]
[1769958861243,0.21369,2342.0,2340.6,6.82048826]
[1769958861447,0.21857452,2342.0,2340.8,6.82048826]
[1769958861740,0.2137,2341.9,2340.8,6.82379377]
[1769958862149,0.00488452,2342.0,2340.8,6.82379377]
[1769958862945,0.21366,2342.4,2340.8,6.82379377]
[1769958863143,0.21368,2342.1,2341.0,6.82048826]
[1769958864245,0.21369,2342.0,2341.0,6.82048826]
[1769958864644,0.2137,2341.9,2341.0,6.82048826]
[1769958864841,6.79210869,2342.2,2341.0,6.82048826]
[1769958865040,0.21368,2342.2,2341.0,6.82048826]
[1769958865749,0.21375,2341.4,2340.3,6.82048826]
[1769958866444,4.98297704,2341.8,2340.3,6.82048826]
[1769958866646,0.00347518,2341.8,2340.3,6.82594898]
[1769958867243,0.21373,2341.6,2340.4,11.26648826]
[1769958867449,0.21373,2341.6,2340.4,6.82048826]
[1769958867650,0.21373,2341.6,2340.5,16.55648826]
[1769958868055,0.21373,2341.6,2340.5,6.82048826]
[1769958868248,0.21375,2341.4,2340.5,6.82048826]
[1769958868452,0.21375,2341.4,2340.7,6.82048826]
[1769958869149,0.21375,2341.4,2340.6,2.565]
[1769958869752,0.21375,2341.4,2340.6,6.82048826]
[1769958869952,0.21375,2341.4,2340.6,2.565]
[1769958870155,6.79210869,2341.7,2340.7,6.82048826]
[1769958870356,6.79210869,2341.7,2340.7,9.38548826]
[1769958871550,7.00582869,2341.7,2340.8,2.565]
[1769958872649,0.21373,2341.6,2340.8,2.565]
[1769958872851,0.21373,2341.6,2340.7,6.82048826]
[1769958875053,6.79210869,2342.0,2340.7,6.82048826]
[1769958875254,0.21374,2341.5,2340.7,6.82048826]
[1769958875452,0.21376,2341.3,2340.4,6.82048826]
[1769958876154,6.79210869,2340.7,2339.6,9.35048106]
[1769958876352,6.79210869,2339.9,2338.8,2.565]
[1769958876657,7.00598869,2340.0,2338.8,9.38548826]
[1769958876858,6.79210869,2339.6,2338.5,9.38548826]
[1769958877056,0.2139,2339.7,2338.6,6.82048826]
[1769958877349,0.21877032,2339.7,2338.7,6.82048826]
[1769958877554,7.41454035,2339.6,2338.7,9.38548826]
[1769958877950,7.41454035,2339.6,2338.6,0.00317409]
[1769958877951,7.20063035,2339.6,2338.6,0.00317409]
[1769958878252,0.00487032,2339.7,2337.2,0.21412]
[1769958878253,7.20063035,2339.2,2338.0,6.97728976]
[1769958878453,7.20063035,2338.7,2337.5,2.565]
[1769958878955,7.20063035,2338.7,2337.6,6.97728976]
[1769958879151,7.41462035,2338.8,2337.6,6.97728976]
[1769958879351,7.41462035,2338.8,2337.6,0.0039991]
[1769958879553,0.21399,2338.7,2337.6,6.98128886]
[1769958880653,7.41462035,2338.7,2337.6,6.98128886]
[1769958881053,7.20063035,2339.1,2337.6,6.98128886]
[1769958881453,7.20063035,2339.1,2337.8,6.97728976]
[1769958881855,0.21395,2339.2,2337.8,6.97728976]
[1769958882052,7.20063035,2339.1,2337.8,6.97728976]
[1769958882255,7.20063035,2339.1,2337.9,2.566]
[1769958882560,7.20063035,2339.1,2337.9,6.97728976]
[1769958882757,7.20063035,2339.1,2337.9,9.54328976]
[1769958883053,7.20063035,2339.1,2337.9,6.97728976]
[1769958883259,0.21397,2339.0,2337.9,6.97728976]
[1769958883650,7.41460035,2339.0,2337.9,6.97728976]
[1769958883850,7.41460035,2339.0,2337.6,2.5129991]
[1769958883851,7.20063035,2338.8,2337.6,0.0039991]
[1769958884058,7.41462035,2338.8,2337.6,6.98128886]
[1769958884460,7.18813414,2339.1,2337.8,6.99228079]
[1769958884761,7.53585491,2339.4,2338.0,6.99228079]
[1769958885151,7.18813414,2339.1,2338.0,6.99228079]
[1769958885655,0.21399,2338.8,2338.0,6.99228079]
[1769958886257,0.21399,2338.8,2337.7,6.99228079]
[1769958886656,0.21399,2338.8,2337.8,2.567]
[1769958886852,0.21399,2338.8,2337.9,6.99228079]
[1769958887262,0.56165077,2339.4,2337.9,6.99228079]
[1769958887657,0.21394,2339.3,2337.9,6.99228079]
[1769958888061,0.00487032,2339.7,2337.9,6.99228079]
[1769958888360,0.00487032,2339.7,2338.1,6.99228079]
[1769958888664,0.21383,2340.5,2338.3,6.99228079]
[1769958888860,7.53644053,2340.6,2338.5,6.99228079]
[1769958889057,7.18813414,2340.1,2338.5,6.99228079]
[1769958889264,7.18813414,2339.7,2338.3,6.99228079]
[1769958889661,7.19189863,2339.7,2338.3,6.99228079]
[1769958890164,0.21396,2339.1,2338.3,6.99228079]
[1769958890359,7.19189863,2339.7,2338.3,6.99228079]
[1769958890360,0.21391,2339.6,2338.3,6.99228079]
[1769958891358,0.00376449,2339.7,2338.3,6.99228079]
[1769958892667,0.21766449,2339.7,2338.4,2.567]
[1769958892865,0.21392,2339.5,2338.5,6.99228079]
[1769958893657,0.00376449,2339.7,2338.5,6.99228079]
[1769958894464,0.21388,2340.0,2338.5,6.99228079]
[1769958894770,2.63485072,2340.6,2338.5,6.99228079]
[1769958895166,9.82298486,2340.6,2338.5,6.99228079]
[1769958895366,7.18813414,2340.9,2338.9,6.99228079]
[1769958895570,2.63485072,2341.0,2338.8,0.21398]
[1769958895571,0.21385,2340.3,2339.1,6.99228079]
[1769958895972,0.21385,2340.3,2339.2,2.567]
[1769958896170,0.21385,2340.3,2339.3,6.99228079]
[1769958896371,0.21385,2340.3,2339.3,6.99677448]
[1769958897372,0.21388,2340.0,2339.3,0.00449369]
[1769958897572,0.21388,2340.0,2338.1,2.52598942]
[1769958897573,7.18813414,2339.7,2338.5,6.99228079]
[1769958897963,0.21394,2339.3,2338.5,6.99228079]
[1769958898366,0.21395,2339.2,2338.5,6.99228079]
[1769958898569,0.21395,2339.2,2338.5,0.00419953]
[1769958899666,7.18813414,2338.9,2337.7,9.55928079]
[1769958899871,7.40208414,2339.2,2337.8,6.99228079]
[1769958900073,7.40209414,2339.1,2337.8,6.99228079]
[1769958900372,7.18813414,2338.9,2337.8,6.99228079]
[1769958900572,0.21392,2339.5,2337.8,6.99557513]
[1769958900774,9.82720018,2340.0,2338.1,7.20633079]
[1769958900969,0.00421532,2340.0,2338.6,6.99228079]
[1769958901175,7.18813414,2340.4,2338.8,6.99228079]
[1769958901571,0.21385,2340.3,2338.8,6.99228079]
[1769958901970,7.18813414,2340.4,2339.0,6.99228079]
[1769958902170,7.18813414,2340.2,2339.0,9.55928079]
[1769958902972,7.18813414,2340.2,2339.1,6.99228079]
[1769958903174,0.2183179,2340.4,2339.1,6.99228079]
[1769958903374,0.21394,2339.3,2338.4,6.99228079]
[1769958903576,0.21398,2338.8,2338.0,6.99228079]
[1769958904773,7.40216414,2338.3,2337.0,2.567]
[1769958905173,0.21404,2338.3,2336.7,2.52598942]
[1769958905468,0.21404,2338.3,2336.6,2.52598942]
[1769958905675,0.2186288,2338.3,2336.7,5.39]
[1769958905875,7.40219414,2338.0,2336.7,2.567]
[1769958906076,2.63943952,2338.3,2336.7,2.567]
[1769958906077,0.0045888,2338.3,2336.7,2.567]
[1769958906477,0.0045888,2338.3,2336.8,2.74014942]
[1769958906677,0.21399,2338.7,2337.0,9.51827021]
[1769958906876,0.21399,2338.7,2337.1,6.99228079]
[1769958907075,0.21401,2338.5,2337.3,6.99228079]
[1769958907270,7.18813414,2338.7,2337.4,6.99228079]
[1769958907475,0.21407,2337.9,2337.1,7.15584602]
[1769958907676,0.21407,2337.9,2336.9,2.567]
[1769958907677,0.21408,2337.7,2336.7,7.15584602]
[1769958907878,0.21409,2337.6,2336.7,7.15584602]
[1769958908078,0.00318344,2337.9,2336.7,7.15584602]
[1769958908779,6.73403948,2338.1,2336.7,7.15584602]
[1769958909375,6.73403948,2338.8,2336.8,7.15584602]
[1769958909775,0.21402,2338.4,2337.0,7.15584602]
[1769958911381,0.21397,2339.0,2337.2,9.70286055]
[1769958911581,0.21397,2339.0,2337.3,7.15584602]
[1769958911884,0.21397,2339.0,2337.4,7.15584602]
[1769958912080,6.73403948,2339.5,2337.6,7.15584602]
[1769958912386,0.21392,2339.5,2338.0,9.91692055]
[1769958912575,6.73403948,2340.0,2338.1,7.15584602]
[1769958912779,0.21386,2340.1,2338.4,7.15584602]
[1769958912979,0.18886,2340.1,2338.6,7.15584602]
[1769958913387,0.21382,2340.6,2338.6,7.36984602]
[1769958913679,0.21382,2340.6,2338.7,7.15584602]
[1769958913880,0.21382,2340.6,2338.7,11.18604944]
[1769958914180,0.21385,2340.3,2338.8,7.15584602]
[1769958914384,0.21385,2340.3,2339.0,7.15584602]
[1769958914385,6.94788948,2340.3,2339.0,7.15584602]
[1769958914679,6.94791948,2339.9,2338.7,2.567]
[1769958914879,6.73403948,2340.2,2338.8,7.15584602]
[1769958915084,0.21384,2340.4,2338.8,7.15584602]
[1769958915284,0.21384,2340.4,2338.8,9.70286055]
[1769958915484,0.21384,2340.4,2339.0,7.15584602]
[1769958915679,6.73403948,2340.3,2339.0,9.72284602]
[1769958915880,0.21384,2340.4,2339.1,7.15584602]
[1769958916076,6.94787948,2340.4,2339.2,9.72284602]
[1769958916286,0.21384,2340.4,2339.3,7.15584602]
[1769958916486,6.94787948,2340.4,2339.3,7.15584602]
[1769958916686,6.73403948,2339.9,2338.6,7.15584602]
[1769958917491,6.73403948,2339.9,2338.7,9.72284602]
[1769958917786,6.73403948,2339.5,2338.4,0.00326399]
[1769958918382,6.73403948,2339.5,2338.4,7.15911001]
[1769958918788,6.73403948,2339.5,2338.4,0.00326399]
[1769958919389,6.73403948,2339.5,2338.4,7.15911001]
[1769958919790,6.73403948,2339.9,2338.4,7.15911001]
[1769958920090,6.73403948,2340.4,2338.4,7.15911001]
[1769958920286,0.21383,2340.5,2338.5,7.15584602]
[1769958920593,0.21383,2340.5,2338.6,7.15584602]
[1769958920793,0.21386,2340.2,2338.7,7.15584602]
[1769958921390,0.21386,2340.2,2338.9,7.15584602]
[1769958921789,3.37003795,2340.2,2338.5,9.72284602]
[1769958921989,0.21389,2339.8,2338.6,7.15584602]
[1769958922388,6.94792948,2339.8,2338.6,7.15584602]
[1769958922593,0.2139,2339.7,2338.6,7.15584602]
[1769958922789,6.94794948,2339.6,2338.6,7.15584602]
[1769958922995,6.94795948,2339.5,2338.4,0.00326399]
[1769958923292,6.94795948,2339.5,2338.4,7.15911001]
[1769958923999,0.21392,2339.5,2338.4,7.15911001]
[1769958924393,0.21392,2339.5,2338.4,9.72611001]
[1769958924698,0.21389,2339.9,2338.5,7.15584602]
[1769958925396,0.20889,2339.9,2338.5,7.15584602]
[1769958925798,3.37003795,2340.7,2338.5,7.15584602]
[1769958925799,6.73403948,2340.4,2338.5,7.15584602]
[1769958926099,0.21384,2340.5,2338.7,7.15584602]
[1769958926504,6.23115579,2341.3,2338.6,2.54701453]
[1769958926505,0.21378,2341.1,2339.3,7.36977602]
[1769958926798,0.21378,2341.1,2339.5,7.15584602]
[1769958927199,6.73403948,2342.0,2339.7,7.15584602]
[1769958927394,0.21378,2341.1,2339.9,7.15584602]
[1769958927595,0.21382,2340.7,2340.0,7.15584602]
[1769958927795,0.21383,2340.5,2339.4,2.567]
[1769958927995,0.21378,2341.1,2339.4,2.567]
[1769958928391,10.10407743,2341.7,2339.4,6.852]
[1769958928392,6.73403948,2341.7,2339.4,6.852]
[1769958928596,6.73403948,2341.7,2339.8,0.21389]
[1769958928898,6.73403948,2342.1,2339.8,0.21389]
[1769958929394,3.37003795,2342.4,2340.1,0.21386]
[1769958929599,10.10407743,2342.4,2340.2,8.631]
[1769958929799,10.10407743,2342.4,2340.3,7.15584602]
[1769958930008,6.73403948,2341.9,2340.6,7.15584602]
[1769958930198,0.21375,2341.4,2340.6,7.15584602]
[1769958930601,0.21369,2342.0,2340.6,7.15584602]
[1769958930801,6.73403948,2342.0,2340.6,7.15584602]
[1769958930999,6.73403948,2342.0,2340.2,7.15584602]
[1769958931202,0.21377,2341.2,2340.2,7.15584602]
[1769958931599,0.2137,2341.9,2340.2,7.15584602]
[1769958931800,6.73403948,2342.3,2340.4,7.15584602]
[1769958932100,19.20486871,2343.3,2340.6,7.15584602]
[1769958932101,0.21366,2342.4,2340.6,7.15584602]
[1769958932406,0.21366,2342.4,2340.8,7.15584602]
[1769958932796,0.21367,2342.2,2341.0,7.15584602]
[1769958933196,6.73403948,2342.7,2341.0,7.15584602]
[1769958933502,6.94766948,2342.7,2341.0,7.15584602]
[1769958933701,0.21364,2342.6,2341.0,7.15584602]
[1769958933998,3.37003795,2343.2,2341.2,7.15584602]
[1769958933999,0.21368,2342.1,2341.2,7.15584602]
[1769958934802,6.73403948,2342.9,2341.2,7.15584602]
[1769958935002,0.21368,2342.2,2341.2,7.15584602]
[1769958935198,0.21368,2342.1,2341.2,7.15584602]
[1769958935397,0.21365,2342.5,2341.2,7.15584602]
[1769958936295,6.94768948,2342.4,2341.2,7.15584602]
[1769958936907,0.21365,2342.4,2341.2,7.15584602]
[1769958937602,0.21365,2342.4,2341.3,2.565]
[1769958937796,0.21365,2342.4,2341.4,7.42058962]
[1769958938205,7.23815416,2342.9,2341.4,7.42058962]